{"text_format":"1","workbook":"xlsx","n_sheets":5,"sheets":["★計算シート","★提出用","★資料1）入所児童月別在席状況報告","（個人賠償加入時必読） 入所児童個人賠償補償の名簿について","入所児童個人賠償補償（提出用名簿）"],"not_rendered":{"charts":0,"images":0,"macros":1,"external_links":0,"defined_names":4,"comments":0,"pivot_tables":0},"unopened":[],"bounds":{"document_bytes":16777216,"sheet_cells":100000,"rows_first":2000,"rows_last":500,"rows_between":2000,"halvings":0,"cell_chars":16384,"cell_head_chars":4096},"cells_cut":0,"cells_raw":0,"read":"whole","date_system":"1900"}

{"sheet":"★計算シート","index":0,"n_rows":61,"n_cols":11,"rows_kept":61,"cut":false,"hidden":false,"merged":[[15,0,23,0],[6,0,6,6],[16,5,17,5],[5,0,5,6],[4,0,4,6],[13,0,13,6],[12,0,12,6],[22,1,23,1],[14,0,14,2],[10,0,10,6],[8,0,8,6],[7,0,7,6],[18,3,18,6],[21,3,21,6],[0,0,1,6],[42,4,42,5],[37,1,38,1],[27,0,38,0],[34,2,35,2],[37,2,38,2],[27,2,28,2],[30,1,31,1],[15,1,17,1],[25,4,25,5],[3,0,3,6],[9,0,9,6],[39,3,39,6],[34,1,35,1],[11,0,11,6],[19,1,20,1],[60,0,71,6],[24,3,24,6],[58,4,58,6],[30,2,31,2],[57,4,57,6],[27,1,28,1],[40,4,40,5],[56,4,56,6],[32,2,32,4],[32,5,32,6]]}
["2023年度児童養護施設保険料計算シート",null,null,null,null,null,null,12,11,"2023年12"]
[null,null,null,null,null,null,null,1,10,"2024年1"]
[null,null,null,null,null,null,null,2,9,"2024年2"]
["「コンテンツの有効化」ボタンが表示されている場合は、「コンテンツの有効化」をクリック\n↓",null,null,null,null,null,null,3,8,"2024年3"]
["『資料1）入所児童月別在席状況報告シート』シートに入所児童月別在籍状況を入力\n(以下の緑色セルが自動入力される）。",null,null,null,null,null,null,4,7,"2024年4"]
["↓",null,null,null,null,null,null,5,6,"2024年5"]
["加入する月をプルダウンで選択後、ピンク色セルをプルダウンから選択。",null,null,null,null,null,null,6,5,"2024年6"]
["↓",null,null,null,null,null,null,7,4,"2024年7"]
["黄色セルを直接入力。",null,null,null,null,null,null,8,3,"2024年8"]
["↓",null,null,null,null,null,null,9,2,"2024年9"]
["『提出用』シートに必要項目を入力。（もしくは印刷して記入。）",null,null,null,null,null,null,10,1,"2024年10"]
["↓",null,null,null,null,null,null,11,12,"2023年11"]
["提出用・資料1のシートを出力。\n※個人賠償加入ありの場合は名簿を併せて提出（「入所児童個人賠償補償の名簿について」を参照ください）。",null,null,null,null,null,null,"残月数",{"$f":"VLOOKUP(D15,H1:I12,2,0)","v":12},{"$f":"VLOOKUP(D15,H1:J12,3,)","v":"2023年11"}]
["※提出用シートの「印刷」ボタンから印刷して下さい。加入申込票と資料1が自動的に印刷されます。"]
["加入する月をプルダウンで選択 ⇒",null,null,11,"月"]
["主契約セット","入所児童２４時間補償",null,"人数（注１）","保険料単価","加入口数","保険料"]
[null,null,"中学生以下児童",{"$f":"'★資料1）入所児童月別在席状況報告'!D27+'★資料1）入所児童月別在席状況報告'!E27+'★資料1）入所児童月別在席状況報告'!F27","v":0},{"$f":"ROUND(1380*(I13/12),0)","v":1380},null,{"$f":"D17*E17*F17","v":0}]
[null,null,"高校生児童",{"$f":"'★資料1）入所児童月別在席状況報告'!G27","v":0},{"$f":"ROUND(1628*(I13/12),0)","v":1628},null,{"$f":"D18*E18*F17","v":0}]
[null,null,null,"（注1）「資料1）入所児童月別在席状況報告」シートより自動反映。幼稚園生、小学生、中学生の各々の年間平均人数合計。"]
[null,"施設賠償",null,"※人数（注２）","コース","※エレベーター台数","保険料","↓施設賠分Ｐ参照キーの１つ","↓施設賠分変更Ｐ","↓昇降機分分変更Ｐ"]
[null,null,"定員",null,null,null,{"$f":"I21+J21","v":0},{"$f":"IF(ISBLANK($E$21),0,VLOOKUP(E21,$B$49:$K$51,10,0))","v":0},{"$f":"IF(OR(ISBLANK($D$21),ISBLANK($E$21)),0,ROUND(HLOOKUP(D21,$C$48:$J$51,H21,0)*I13/12,-1))","v":0},{"$f":"IF(ISBLANK($E$21),0,ROUND(VLOOKUP(E21,B54:C56,2,0)*I13/12*F21,-1))","v":0}]
[null,null,null,"（注２）施設の正式定員数（暫定ではありません。）"]
[null,"個人賠償\n*名簿の写が必要です。\n「入所児童個人賠償補償の名簿について」を参照ください。",null,"人数（注３）","保険料単価",null,"保険料"]
[null,null,"中学以上児童",{"$f":"'★資料1）入所児童月別在席状況報告'!F26+'★資料1）入所児童月別在席状況報告'!G26+'★資料1）入所児童月別在席状況報告'!I26+'★資料1）入所児童月別在席状況報告'!J26","v":0},{"$f":"ROUND(150*(I13/12),-1)","v":150},null,{"$f":"D24*E24","v":0}]
[null,null,null,"（注３）「入所児童月別在籍状況報告」で算出した人数\n"]
[null,null,null,null,"主契約保険料",null,{"$f":"G17+G18+G21+G24","v":0}]
[]
["任意契約","入所児童２４時間補償\n　幼稚園～高校以外","名簿人数","人数（注４）","保険料単価","加入口数","保険料"]
[null,null,null,null,{"$f":"ROUND(3070*(I13/12),-1)","v":3070},null,{"$f":"D29*E29*F29","v":0}]
[null,null,null,"（注４）幼稚園～高校在学生以外の名簿人数〈名簿備付要・提出不要〉。"]
[null,"職員向け災害\n見舞金補償","施設職員\n（ﾊﾟｰﾄ･ｱﾙﾊﾞｲﾄ含む）","※人数（注５）","保険料単価","加入口数","保険料"]
[null,null,null,null,{"$f":"ROUND(990*(I13/12),-1)","v":990},null,{"$f":"ROUND(D32*E32*F32,-1)","v":0}]
[null,null,"把握可能な最近の労働保険年度の終期　⇒"]
[null,null,null,"（注５）現在把握可能な最近の労働保険年度の平均被用者数。"]
[null,"短期入所等\n児童向傷害補償","名簿人数","人数（注６）","保険料単価","加入口数","保険料"]
[null,null,null,null,{"$f":"ROUND(2120*(I13/12),-1)","v":2120},null,{"$f":"D36*E36*F36","v":0}]
[null,null,null,"（注６）短期入所児童の名簿人数〈名簿備付要・提出不要〉。"]
[null,"ﾎﾞﾗﾝﾃｨｱ・実習生向\n傷害補償","最高稼動\n人数","人数（注７）","保険料単価","加入口数","保険料"]
[null,null,null,null,{"$f":"ROUND(2050*(I13/12),-1)","v":2050},null,{"$f":"D39*E39*F39","v":0}]
[null,null,null,"（注７）「一度に最大何名がボランティアおよび実習生として従事するか」の見込み人数〈名簿備付要・提出不要〉。"]
[null,null,null,null,"任意契約保険料",null,{"$f":"G29+G32+G36+G39","v":0}]
[]
[null,null,null,null,"合計保険料",null,{"$f":"G26+G41","v":0}]
[]
[]
[]
[null,"＜施設賠償保険料＞"]
[null,"施設児童定員数","１０名まで","１１～３０名","３１～６０名","６１～７０名","７１～８０名","８１～９０名","９１～１００名","１０１名以上"]
[null,"Ａコース",21620,25940,29300,30900,33320,35830,38420,41110,2]
[null,"Ｂコース",23820,28580,33040,34680,37250,39910,42680,45520,3]
[null,"Ｃコース",26200,31440,36350,38160,40980,43910,46940,50050,4]
[]
[null,"＜昇降機保険料＞"]
[null,"Ａコース",3500]
[null,"Ｂコース",4240]
[null,"Ｃコース",4500]
[]
[]
[]
[]
["\nご入力ありがとうございました。\n\n■最後に各項目の入力人数・加入コース等のプルダウン誤りがないか・加入\n　口数（「0」の場合も「0」とご入力ください）のご確認をお願いいたします。\n\n■保険料のお振込みにあたりご請求書は原則発行いたしません。\n　保険料はパンフレット掲載の振込先へお振込みください。"]

{"sheet":"★提出用","index":1,"n_rows":52,"n_cols":8,"rows_kept":52,"cut":false,"hidden":false,"merged":[[48,2,51,2],[48,1,51,1],[48,5,48,7],[40,2,41,2],[49,3,49,4],[48,3,48,4],[40,3,41,3],[43,5,43,6],[50,5,50,7],[51,3,51,4],[51,6,51,7],[45,5,45,6],[49,5,49,7],[50,3,50,4],[18,1,26,1],[30,1,41,1],[14,2,14,7],[15,2,15,7],[11,1,13,1],[33,2,34,2],[18,2,20,2],[37,3,38,3],[22,2,23,2],[37,2,38,2],[28,5,28,6],[35,3,35,5],[35,6,35,7],[2,5,2,7],[33,3,34,3],[4,1,4,7],[25,2,26,2],[3,1,3,7],[6,1,7,1],[8,2,8,7],[19,6,20,6],[11,2,11,7],[13,2,13,7],[6,2,6,7],[8,1,10,1],[30,2,31,2],[7,2,7,4],[9,2,10,2],[9,5,10,7]]}
[]
[null,"公益財団法人　児童育成協会　行"]
[null,null,null,null,null,"申込日：令和　　　年　　　月　　　日"]
[null,"「児童養護施設損害保険制度」加入申込票"]
[null,"下記事項に相違がないことを確認の上、「児童養護施設損害保険制度」の加入を申込みます。また、「職員向け災害見舞金補償」について、労働災害総合保険普通保険約款および特約の規定により、保険料の算出等に用いる正確な数値等を「職員向け災害見舞金補償」の施設職員数欄にて通知いたします。\n\n（ご注意）加入申込票には事実を正確にご回答（記入）ください。※印の項目は危険に関する重要な事項です。ご回答内容が事実と相違する場合または事実を記載しなかった場合はご契約を解除し、保険金をお支払いできないことがありますので十分にご確認のうえご回答（記入）ください。"]
[null,"（ご注意）フリガナも必ずご記入ください。"]
[null,"施設名","フリガナ"]
[]
[null,"代表者名","フリガナ"]
[null,null,null,null,null,"担当者名"]
[]
[null,"施設住所","フリガナ"]
[null,null,"〒　　　　－"]
[]
[null,"e-Mail\nアドレス\n"]
[null,"保険期間",{"$f":"CONCATENATE(★計算シート!J13,\"月1日～2024年11月1日\")","v":"2023年11月1日～2024年11月1日"}]
[]
[null,"加入内容および保険料（保険金額・補償内容はパンフレットの通り）"]
[null,"主契約セット","入所児童２４時間補償",null,"人数","保険料単価","加入口数","保険料"]
[null,null,null,"中学以下児童数（注1）",{"$f":"★計算シート!D17","v":0},{"$f":"★計算シート!E17","v":1380},{"$f":"★計算シート!F17","v":0},{"$f":"★計算シート!G17","v":0}]
[null,null,null,"高校児童数（注1）",{"$f":"★計算シート!D18","v":0},{"$f":"★計算シート!E18","v":1628},null,{"$f":"★計算シート!G18","v":0}]
[]
[null,null,"施設賠償",null,"※人数","コース","※エレベーター台数","保険料"]
[null,null,null,"定員（注2）",{"$f":"★計算シート!D21","v":0},{"$f":"★計算シート!E21","v":0},{"$f":"★計算シート!F21","v":0},{"$f":"★計算シート!G21","v":0}]
[]
[null,null,"個人賠償\n※名簿の写が必要です。\n「入所児童個人賠償補償の名簿について」\nを参照ください。",null,"人数","保険料単価",null,"保険料"]
[null,null,null,"中学以上児童数（注3）",{"$f":"★計算シート!D24","v":0},{"$f":"★計算シート!E24","v":150},null,{"$f":"★計算シート!G24","v":0}]
[null,null,null,"N"]
[null,null,null,null,null,"主契約保険料",null,{"$f":"★計算シート!G26","v":0}]
[]
[null,"任意契約","入所児童２４時間補償\n　幼稚園～高校以外",null,"人数","保険料単価","加入口数","保険料"]
[null,null,null,"児童数（注4）",{"$f":"★計算シート!D29","v":0},{"$f":"★計算シート!E29","v":3070},{"$f":"★計算シート!F29","v":0},{"$f":"★計算シート!G29","v":0}]
[]
[null,null,"職員向け災害\n見舞金補償","施設職員数\n（ﾊﾟｰﾄ･ｱﾙﾊﾞｲﾄ含む）\n（注5）","※人数","保険料単価","加入口数","保険料"]
[null,null,null,null,{"$f":"★計算シート!D32","v":0},{"$f":"★計算シート!E32","v":990},{"$f":"★計算シート!F32","v":0},{"$f":"★計算シート!G32","v":0}]
[null,null,null,"把握可能な最近の労働保険年度の終期　⇒",null,null,{"$f":"IF(★計算シート!F33=\"\",\"職員向け災害 見舞金補償にご加入の場合は、計算シート上で入力ください。\",★計算シート!F33)","v":"職員向け災害 見舞金補償にご加入の場合は、計算シート上で入力ください。"}]
[]
[null,null,"短期入所等\n児童向傷害補償","短期入所児童数（注6）","人数","保険料単価","加入口数","保険料"]
[null,null,null,null,{"$f":"★計算シート!D36","v":0},{"$f":"★計算シート!E36","v":2120},{"$f":"★計算シート!F36","v":0},{"$f":"★計算シート!G36","v":0}]
[]
[null,null,"ﾎﾞﾗﾝﾃｨｱ・実習生向\n傷害補償","最高稼動\n人数（注7）","人数","保険料単価","加入口数","保険料"]
[null,null,null,null,{"$f":"★計算シート!D39","v":0},{"$f":"★計算シート!E39","v":2050},{"$f":"★計算シート!F39","v":0},{"$f":"★計算シート!G39","v":0}]
[]
[null,null,null,null,null,"任意契約保険料",null,{"$f":"★計算シート!G41","v":0}]
[]
[null,null,null,null,null,"合計保険料",null,{"$f":"★計算シート!G43","v":0}]
[]
[]
[null,"※他の\n保険契約等","この保険契約で保険金のお支払対象となる損害を補償する他の保険契約等がある。（ありのときは右欄に記入。ない場合は「なし」となります。）","保険会社",null,"保険金額・支払限度額"]
[]
[null,null,null,"保険種類",null,"過去3年間における事故"]
[null,null,null,null,null,null,"ありの場合　　　　　　　　回"]

{"sheet":"★資料1）入所児童月別在席状況報告","index":2,"n_rows":35,"n_cols":12,"rows_kept":35,"cut":false,"hidden":false,"merged":[[5,0,5,9],[34,8,36,9],[34,11,36,11],[34,6,36,7],[11,3,11,6],[11,7,11,9],[31,6,33,7],[31,8,33,11]]}
[null,null,null,null,null,null,null,null,null,null,null,"資料１"]
[null,null,null,null,null,null,null,null,null,"施設所在地(都道府県名):"]
[]
[null,"公益財団法人　児童育成協会　行"]
[]
["入所児童月別在籍状況報告",null,null,null,null,null,null,null,null,null,null,"入所児童個人賠償保険料"]
[]
[null,"対象期間の入所児童数の内訳につき、下記の通りご報告いたします。"]
[]
[null,"　","対象期間：２０２２　 年　４月　１日　～　２０２３　年　３月　３１日　"]
[null,null,null,null,null,null,null,null,null,"＜単位：人＞"]
[null,null,null,"学校教育法上の学校在学児童（含む特別支援学校）",null,null,null,"左記以外の児童"]
[null,null,"入所児童数","幼稚園","小学校","中学校（◆）","高等学校（◆）","未就園児童\n(保育園児等)","専門学校等（◆）","短期入所の中学生以上の人数（◆）",null,"(始期時点の保険料が自動計算されます）\n中学生以上の入所児童数(◆印の合計)×150円"]
[1,"2022-04-01",{"$f":"SUM(D14:I14)","v":0},null,null,null,null,null,null,null,null,{"$f":"SUM(F14+G14+I14+J14)*150","v":0}]
[2,"2022-05-01",{"$f":"SUM(D15:I15)","v":0},null,null,null,null,null,null,null,null,{"$f":"SUM(F15+G15+I15+J15)*150","v":0}]
[3,"2022-06-01",0,null,null,null,null,null,null,null,null,{"$f":"SUM(F16+G16+I16+J16)*150","v":0}]
[4,"2022-07-01",0,null,null,null,null,null,null,null,null,0]
[5,"2022-08-01",0,null,null,null,null,null,null,null,null,0]
[6,"2022-09-01",0,null,null,null,null,null,null,null,null,0]
[7,"2022-10-01",0,null,null,null,null,null,null,null,null,0]
[8,"2022-11-01",0,null,null,null,null,null,null,null,null,0]
[9,"2022-12-01",0,null,null,null,null,null,null,null,null,0]
[10,"2023-01-01",0,null,null,null,null,null,null,null,null,0]
[11,"2023-02-01",0,null,null,null,null,null,null,null,null,0]
[12,"2023-03-01",{"$f":"SUM(D25:I25)","v":0},null,null,null,null,null,null,null,null,0]
[null,"１２ヶ月合計",{"$f":"SUM(C14:C25)","v":0},{"$f":"SUM(D14:D25)","v":0},0,0,0,0,0,0,null,{"$f":"SUM(F26+G26+I26+J26)*150","v":0}]
[null,"年間平均　　　　　　\n入所児童数",{"$f":"SUM(D27:I27)","v":0},{"$f":"ROUND(D26/12,0)","v":0},0,0,0,0,0,0]
[null,null,"※年間平均入所児童数の算出は小数点以下四捨五入により整数で記載。"]
[null,null,"※新設施設の場合は、直近の月別在籍者平均となります。表の対象期間を訂正してご記入下さい。"]
[]
[]
[null,null,null,null,null,null,"報告施設名：",null,""]
[]
[]
[null,null,null,null,null,null,"代表者名：",null,"",null,null,"㊞ "]

{"sheet":"（個人賠償加入時必読） 入所児童個人賠償補償の名簿について","index":3,"n_rows":56,"n_cols":11,"rows_kept":56,"cut":false,"hidden":false,"merged":[[1,1,1,9]]}
[]
[null,"入所児童個人賠償補償の名簿について"]
[null,"■入所児童個人賠償補償は、ご加入時に前年度の中学生以上の名簿の写しのご提出が必要となっております。"]
[null,"■２０２３年度ご加入の場合、２０２２年４月１日～２０２３年３月３１日の期間が対象となります。"]
[null,"■中学生以上の方がわかるようにして下さい。"]
[]
[null,"【ケース１】"]
[null,"名簿がエクセル等で電子データで加工ができる場合には、中学生以上を抜き出してください。"]
[]
[null,"氏名","入所期間","生年月日","学年",null,"氏名","入所期間","生年月日","学年"]
[null,"錦糸町　次郎","２０２２年１１月１日～２０２２年１２月３１日","xxxx年xx月xx日","小学５年",null,"水天宮　五郎丸","２０２２年１１月１日～２０２２年１２月３１日","xxxx年xx月xx日","高校１年"]
[null,"住吉　三太郎","２０２２年１１月１日～２０２２年１２月３１日","xxxx年xx月xx日","小学６年",null,"三越　六実","２０２２年１２月１日～２０２３年１月３１日","xxxx年xx月xx日","高校２年"]
[null,"水天宮　五郎丸","２０２２年１１月１日～２０２２年１２月３１日","xxxx年xx月xx日","高校１年",null,"神保　八ノ助","２０２２年１２月１日～２０２３年１月３１日","xxxx年xx月xx日","中学１年"]
[null,"三越　六実","２０２２年１２月１日～２０２３年１月３１日","xxxx年xx月xx日","高校２年",null,"九段下　九郎","２０２２年１２月１日～２０２３年１月３１日","xxxx年xx月xx日","中学２年"]
[null,"大手町　七菜子","２０２２年１２月１日～２０２３年１月３１日","xxxx年xx月xx日","小学６年"]
[null,"神保　八ノ助","２０２２年１２月１日～２０２３年１月３１日","xxxx年xx月xx日","中学１年"]
[null,"九段下　九郎","２０２２年１２月１日～２０２３年１月３１日","xxxx年xx月xx日","中学２年"]
[]
[]
[null,"【ケース２】"]
[null,"名簿が紙で小学生等が混在している場合には名簿のコピーで小学生以下の部分を塗りつぶすか、中学生以上の方がわかるよう、余白などに〇をしてください。"]
[]
[null,null,null,null,null,null,"例１：　小学生以下の部分を塗りつぶす"]
[null,"氏名","入所期間","生年月日","学年",null,"氏名","入所期間","生年月日","学年"]
[null,"錦糸町　次郎","２０２２年１１月１日～２０２２年１２月３１日","xxxx年xx月xx日","小学５年",null,"錦糸町　次郎","２０２２年１１月１日～２０２２年１２月３１日","xxxx年xx月xx日","小学５年"]
[null,"住吉　三太郎","２０２２年１１月１日～２０２２年１２月３１日","xxxx年xx月xx日","小学６年",null,"住吉　三太郎","２０２２年１１月１日～２０２２年１２月３１日","xxxx年xx月xx日","小学６年"]
[null,"水天宮　五郎丸","２０２２年１１月１日～２０２２年１２月３１日","xxxx年xx月xx日","高校１年",null,"水天宮　五郎丸","２０２２年１１月１日～２０２２年１２月３１日","xxxx年xx月xx日","高校１年"]
[null,"三越　六実","２０２２年１２月１日～２０２３年１月３１日","xxxx年xx月xx日","高校２年",null,"三越　六実","２０２２年１２月１日～２０２３年１月３１日","xxxx年xx月xx日","高校２年"]
[null,"大手町　七菜子","２０２２年１２月１日～２０２３年１月３１日","xxxx年xx月xx日","小学６年",null,"大手町　七菜子","２０２２年１２月１日～２０２３年１月３１日","xxxx年xx月xx日","小学６年"]
[null,"神保　八ノ助","２０２２年１２月１日～２０２３年１月３１日","xxxx年xx月xx日","中学１年",null,"神保　八ノ助","２０２２年１２月１日～２０２３年１月３１日","xxxx年xx月xx日","中学１年"]
[null,"九段下　九郎","２０２２年１２月１日～２０２３年１月３１日","xxxx年xx月xx日","中学２年",null,"九段下　九郎","２０２２年１２月１日～２０２３年１月３１日","xxxx年xx月xx日","中学２年"]
[]
[null,null,null,null,null,null,"例２：　中学生以上の方がわかるよう、余白に〇をする。"]
[null,null,null,null,null,null,"氏名","入所期間","生年月日","学年"]
[null,null,null,null,null,null,"錦糸町　次郎","２０２２年１１月１日～２０２２年１２月３１日","xxxx年xx月xx日","小学５年"]
[null,null,null,null,null,null,"住吉　三太郎","２０２２年１１月１日～２０２２年１２月３１日","xxxx年xx月xx日","小学６年"]
[null,null,null,null,null,null,"水天宮　五郎丸","２０２２年１１月１日～２０２２年１２月３１日","xxxx年xx月xx日","高校１年","〇"]
[null,null,null,null,null,null,"三越　六実","２０２２年１２月１日～２０２３年１月３１日","xxxx年xx月xx日","高校２年","〇"]
[null,null,null,null,null,null,"大手町　七菜子","２０２２年１２月１日～２０２３年１月３１日","xxxx年xx月xx日","小学６年"]
[null,null,null,null,null,null,"神保　八ノ助","２０２２年１２月１日～２０２３年１月３１日","xxxx年xx月xx日","中学１年","〇"]
[null,null,null,null,null,null,"九段下　九郎","２０２２年１２月１日～２０２３年１月３１日","xxxx年xx月xx日","中学２年","〇"]
[]
[]
[null,null,null,null,null,null,"例３：　中学生以上の方がわかるよう、氏名に〇をする。"]
[null,null,null,null,null,null,"氏名","入所期間","生年月日","学年"]
[null,null,null,null,null,null,"錦糸町　次郎","２０２２年１１月１日～２０２２年１２月３１日","xxxx年xx月xx日","小学５年"]
[null,null,null,null,null,null,"住吉　三太郎","２０２２年１１月１日～２０２２年１２月３１日","xxxx年xx月xx日","小学６年"]
[null,null,null,null,null,null,"水天宮　五郎丸","２０２２年１１月１日～２０２２年１２月３１日","xxxx年xx月xx日","高校１年"]
[null,null,null,null,null,null,"三越　六実","２０２２年１２月１日～２０２３年１月３１日","xxxx年xx月xx日","高校２年"]
[null,null,null,null,null,null,"大手町　七菜子","２０２２年１２月１日～２０２３年１月３１日","xxxx年xx月xx日","小学６年"]
[null,null,null,null,null,null,"神保　八ノ助","２０２２年１２月１日～２０２３年１月３１日","xxxx年xx月xx日","中学１年"]
[null,null,null,null,null,null,"九段下　九郎","２０２２年１２月１日～２０２３年１月３１日","xxxx年xx月xx日","中学２年"]
[]
[null,"【ケース３】"]
[null,"上記が難しい場合には下記のひな形に入力のうえご提出ください。"]
[null,"ひな型はこちら：","入所児童個人賠償補償（提出用名簿）"]

{"sheet":"入所児童個人賠償補償（提出用名簿）","index":4,"n_rows":6,"n_cols":5,"rows_kept":6,"cut":false,"hidden":false,"merged":[[3,2,3,4]]}
[]
[]
[]
[null,null,"施設名：　　"]
[]
[null,"氏名","入所期間","生年月日","学年"]